fUST/lending_fUST_20241009
["ID","MTS","AMOUNT","RATE_DAILY","PERIOD"]
[340071518,1728459090012,-4777.17,0.00063561,21]
[340071519,1728459090023,-599.11,0.00063561,120]
[340071520,1728459090034,-1654.31,0.00063561,120]
[340071521,1728459090044,-3371.8,0.00063561,120]
[340071522,1728459090056,-825.52,0.00063561,120]
[340071523,1728459090066,-537.56,0.00063561,120]
[340071524,1728459090076,-2641.39,0.00063561,120]
[340071525,1728459090088,-579.17,0.00063561,120]
[340071526,1728459090098,-500.0,0.00063561,120]
[340071527,1728459090108,-1000.0,0.000639,120]
[340071528,1728459090119,-1000.0,0.000639,120]
[340071529,1728459090129,-1000.0,0.000639,120]
[340071530,1728459090140,-1000.0,0.000639,120]
[340071531,1728459090151,-1000.0,0.000639,120]
[340071532,1728459090160,-1000.0,0.000639,120]
[340071533,1728459090170,-1000.0,0.000639,120]
[340071534,1728459090181,-1000.0,0.000639,120]
[340071535,1728459090191,-677.71,0.00063999,120]
[340071536,1728459090201,-1318.27,0.00063999,120]
[340071537,1728459090211,-500.0,0.00063999,120]
[340071538,1728459090221,-1667.02,0.00063999,120]
[340071539,1728459090233,-1163.83,0.00063999,120]
[340071540,1728459090243,-1071.26,0.00063999,120]
[340071541,1728459090253,-179.91175349,0.00063999,120]
[340071542,1728459090263,-1191.19,0.00063999,120]
[340071543,1728459090272,-751.07,0.00063999,120]
[340071544,1728459090282,-523.05,0.00063999,120]
[340071545,1728459090291,-627.85,0.00063999,2]
[340071546,1728459090301,-682.88,0.00063999,120]
[340071547,1728459090310,-1411.7,0.00063999,120]
[340071548,1728459090320,-1143.64,0.00063999,120]
[340071549,1728459090331,-33358.4,0.00063999,18]
[340071550,1728459090340,-4777.17,0.00063999,21]
[340071551,1728459090352,-599.11,0.00063999,120]
[340071552,1728459090362,-1654.31,0.00063999,120]
[340071553,1728459090372,-3371.8,0.00063999,120]
[340071554,1728459090383,-825.52,0.00063999,120]
[340071555,1728459090393,-537.56,0.00063999,120]
[340071556,1728459090402,-2641.39,0.00063999,120]
[340071557,1728459090412,-579.17,0.00063999,120]
[340071558,1728459090421,-500.0,0.00063999,120]
[340071559,1728459090430,-200.0,0.00064,120]
[340071560,1728459090440,-400.0,0.00064095,2]
[340071561,1728459090450,-152.0,0.00064261,120]
[340071562,1728459090460,-206.48,0.000643,66]
[340071563,1728459090470,-480.0,0.00064329,15]
[340071564,1728459090481,-480.0,0.00064329,15]
[340071565,1728459090490,-516.75,0.00064383,120]
[340071566,1728459090500,-677.71,0.00064438,120]
[340071567,1728459090509,-1318.27,0.00064438,120]
[340071568,1728459090519,-508.39319947,0.00064438,120]
[340071569,1728459090528,-1667.02,0.00064438,120]
[340071570,1728459090538,-1163.83,0.00064438,120]
[340071571,1728459090547,-1071.26,0.00064438,120]
[340071572,1728459090557,-1191.19,0.00064438,120]
[340071573,1728459090567,-751.07,0.00064438,120]
[340071574,1728459090578,-523.05,0.00064438,120]
[340071575,1728459090588,-627.85,0.00064438,2]
[340071576,1728459090598,-682.88,0.00064438,120]
[340071577,1728459090608,-1411.7,0.00064438,120]
[340071578,1728459090618,-1143.64,0.00064438,120]
[340071579,1728459090627,-33358.4,0.00064438,18]
[340071580,1728459090637,-4777.17,0.00064438,21]
[340071581,1728459090646,-599.11,0.00064438,120]
[340071582,1728459090657,-1654.31,0.00064438,120]
[340071583,1728459090666,-3371.8,0.00064438,120]
[340071584,1728459090676,-825.52,0.00064438,120]
[340071585,1728459090686,-537.56,0.00064438,120]
[340071586,1728459090696,-2641.39,0.00064438,120]
[340071587,1728459090705,-579.17,0.00064438,120]
[340071588,1728459090715,-500.0,0.00064438,120]
[340071589,1728459090725,-1000.0,0.000645,120]
[340071590,1728459090735,-1000.0,0.000645,120]
[340071591,1728459090745,-1000.0,0.000645,120]
[340071592,1728459090754,-4297.58317899,0.000645,120]
[340071593,1728459090765,-3301.09786158,0.0006472,28]
[340071594,1728459090774,-677.85885436,0.00064876,120]
[340071595,1728459090784,-1318.29714907,0.00064876,120]
[340071596,1728459090794,-1667.02065941,0.00064876,120]
[340071597,1728459090803,-1164.04735613,0.00064876,120]
[340071598,1728459090812,-1071.35345456,0.00064876,120]
[340071599,1728459090821,-1191.23082224,0.00064876,120]
[340071600,1728459090831,-751.24371034,0.00064876,120]
[340071601,1728459090840,-523.26592554,0.00064876,120]
[340071602,1728459090849,-627.95777448,0.00064876,2]
[340071603,1728459090859,-682.92729791,0.00064876,120]
[340071604,1728459090868,-1411.86130979,0.00064876,120]
[340071605,1728459090877,-1143.64279628,0.00064876,120]
[340071606,1728459090888,-33358.61256222,0.00064876,18]
[340071607,1728459090897,-4777.33618904,0.00064876,21]
[340071608,1728459090906,-599.25798656,0.00064876,120]
[340071609,1728459090916,-1654.54679997,0.00064876,120]
[340071610,1728459090934,-3371.84186687,0.00064876,120]
[340071611,1728459090953,-825.64118896,0.00064876,120]
[340071612,1728459090972,-537.74325593,0.00064876,120]
[340071613,1728459090989,-2641.54119949,0.00064876,120]
[340071614,1728459091008,-579.350889,0.00064876,120]
[340071615,1728459091027,-368.21993915,0.00064876,120]
[340071616,1728459091045,-200.0,0.00065,120]
[340071617,1728459091064,-3956.48943563,0.00065,2]
[340071618,1728459091082,-78634.0,0.00065,120]
[340071619,1728459091101,-289.0,0.00065042,120]
[340071620,1728459091120,-500.0,0.00065143,120]
[340071621,1728459091138,-5000.0,0.000655,120]
[340071622,1728459091158,-151.0,0.00065541,120]
[340071623,1728459091169,-289.0,0.00065589,120]
[340071624,1728459091178,-2000000.000001,0.000656,120]
[340071625,1728459091188,-500.0,0.00065605,120]
[340071626,1728459091198,-516.75,0.00065753,120]
[340071627,1728459091208,-500.0,0.00065753,120]
[340071628,1728459091218,-1528.16945868,0.00065854,2]
[340071629,1728459091228,-2000.0,0.00066,120]
[340071630,1728459091238,-2000.0,0.00066,120]
[340071631,1728459091247,-2000.0,0.00066,120]
[340071632,1728459091256,-2000.0,0.00066,120]
[340071633,1728459091266,-2000.0,0.00066,120]
[340071634,1728459091276,-2000.0,0.00066,120]
[340071635,1728459091285,-2000.0,0.00066,120]
[340071636,1728459091294,-2000.0,0.00066,120]
[340071637,1728459091304,-2000.0,0.00066,120]
[340071638,1728459091314,-2000.0,0.00066,120]
[340071639,1728459091324,-2000.0,0.00066,120]
[340071640,1728459091335,-2000.0,0.00066,120]
[340071641,1728459091350,-2000.0,0.00066,120]
[340071642,1728459091362,-2000.0,0.00066,120]
[340071643,1728459091373,-2000.0,0.00066,120]
[340071644,1728459091383,-515.0,0.00066,7]
[340071645,1728459091392,-169.47595638,0.00066,120]
[340071646,1728459091403,-1943.56673579,0.00066,120]
[340071647,1728459091414,-213.86228316,0.000665,120]
[340071648,1728459091512,-345.25375831,0.00067,120]
[340071649,1728459091523,-866.86,0.00067,110]
[340071650,1728459091533,-6363.90206118,0.00067092,120]
[340071651,1728459091543,-516.75,0.00067123,120]
[340071652,1728459091557,-352.712753,0.0006789,120]
[340071653,1728459091568,-822.29085987,0.00068,120]
[340071654,1728459091578,-2050.28,0.000684,120]
[340071655,1728459091588,-500.0,0.00068493,120]
[340071656,1728459091598,-516.75,0.00068493,120]
[340071657,1728459091607,-500.0,0.00068493,120]
[340071658,1728459091617,-5000.0,0.000685,120]
[340071659,1728459091627,-58003.4940833,0.000688,120]
[340071660,1728459091637,-289.0,0.00068868,120]
[340071661,1728459091647,-600.0,0.00068882,120]
[340071662,1728459091656,-400.0,0.00068955,2]
[340071663,1728459091665,-151.0,0.00068955,120]
[340071664,1728459091675,-3000.0,0.00069,120]
[340071665,1728459091684,-3000.0,0.0006901,120]
[340071666,1728459091694,-3000.0,0.0006902,120]
[340071667,1728459091704,-3000.0,0.0006903,120]
[340071668,1728459091713,-5609.278738,0.0006904,120]
[340071669,1728459091723,-600.0,0.00069156,120]
[340071670,1728459091733,-600.0,0.0006943,120]
[340071671,1728459091743,-18981.84942969,0.00069456,120]
[340071672,1728459091753,-3301.09786158,0.0006955,28]
[340071673,1728459091763,-1528.16945868,0.000696,2]
[340071674,1728459091773,-1993000.82826287,0.0006964,120]
[340071675,1728459091784,-805465.15672839,0.0006965,120]
[340071676,1728459091922,-17036.05976969,0.0006965,120]
[340071677,1728459158382,161.324442,0.00031944,2]
[340071678,1728459213666,178.023868,0.000324,2]
[340071679,1728459213845,178.023868,0.00032682,2]
[340071680,1728459240663,397.0,0.00032876,2]
[340071681,1728459242679,400.0,0.00032876,2]
[340071682,1728459258627,158.15082827,0.00032863,2]
[340071683,1728459281858,-1745.96152081,0.00032877,2]
[340071684,1728459281887,-5000.0,0.00032877,2]
[340071685,1728459281913,-178.023868,0.00032963,2]
[340071686,1728459285913,1007.73518563,0.00033,2]
[340071687,1728459295001,-178.023868,0.00033245,2]
[340071688,1728459295030,-178.023868,0.00033526,2]
[340071689,1728459295057,-178.023868,0.00033807,2]
[340071690,1728459304780,-178.023868,0.00034089,2]
[340071691,1728459323033,-1000.0,0.00035786,2]
[340071692,1728459323059,-158.15082827,0.0003582,2]
[340071693,1728459323086,-269.0,0.00035909,2]
[340071694,1728459323114,-23572.84917173,0.0003591,5]
[340071695,1728459324316,-6190.66423657,0.0003591,5]
[340071696,1728459324348,-500.0,0.00035919,15]
[340071697,1728459324375,-240.73193871,0.00035919,15]
[340071698,1728459324401,-151.0,0.00035999,14]
[340071699,1728459324428,-151.0,0.00035999,14]
[340071700,1728459324453,-151.0,0.00035999,14]
[340071701,1728459324479,-151.0,0.00035999,14]
[340071702,1728459324505,-276.733743,0.00036,2]
[340071703,1728459356653,-151.0,0.0003606,14]
[340071704,1728459356678,-151.94253,0.0003659,14]
[340071705,1728459356705,-500.0,0.00036931,13]
[340071706,1728459600824,-1695.3075142,0.00038774,2]
[340071707,1728459600852,-556.13,0.000388,2]
[340071708,1728459835559,500.51,0.000388,2]
[340071709,1728459864439,500.0,0.00036956,13]
[340071710,1728459873145,262.897055,0.00036,2]
[340071711,1728459884638,500.0,0.00036956,13]
[340071712,1728459933057,1219.0,0.00039752,2]
[340071714,1728460143665,450.46,0.000388,2]
[340071743,1728460231808,-815.07553515,0.00040282,120]
[340071744,1728460231819,-262.897055,0.00041315,120]
[340071745,1728460231829,-180.227,0.00042,7]
[340071746,1728460231839,-763.41610197,0.00042752,2]
[340071747,1728460231851,-455.58389803,0.00042752,2]
[340071748,1728460231860,-400.0,0.00044658,2]
[340071749,1728460231870,-800.0,0.00045,120]
[340071750,1728460231880,-1867.8742585,0.00045464,2]
[340071751,1728460231889,-1219.0,0.00045752,2]
[340071752,1728460231900,-262.897055,0.0004663,120]
[340071753,1728460231910,-1219.0,0.00048752,2]
[340071754,1728460231920,-500.0,0.00049315,30]
[340071755,1728460231930,-500.0,0.00049315,120]
[340071756,1728460231940,-400.0,0.00049517,2]
[340071757,1728460231949,-500.0,0.00050684,35]
[340071758,1728460231959,-2547.38321795,0.00051,85]
[340071766,1728460239903,-332.74955305,0.00051,85]
[340071767,1728460239913,-906.432,0.00051752,120]
[340071768,1728460239923,-262.897055,0.00051945,120]
[340071769,1728460239936,-500.0,0.00052,120]
[340071770,1728460239945,-500.0,0.00052054,40]
[340071771,1728460239955,-600.0,0.000528,2]
[340071772,1728460239965,-153.0,0.00053241,120]
[340071773,1728460239974,-153.0,0.00053241,120]
[340071774,1728460239983,-153.0,0.00053241,120]
[340071775,1728460239993,-153.0,0.00053241,120]
[340071776,1728460240002,-153.0,0.00053241,120]
[340071777,1728460240011,-153.0,0.00053241,120]
[340071778,1728460240022,-153.0,0.00053241,120]
[340071779,1728460240034,-153.0,0.00053241,120]
[340071780,1728460240043,-153.0,0.00053241,120]
[340071781,1728460240052,-153.0,0.00053241,120]
[340071782,1728460240063,-153.0,0.00053241,120]
[340071783,1728460240072,-153.0,0.00053241,120]
[340071784,1728460240081,-153.0,0.00053241,120]
[340071785,1728460240090,-153.0,0.00053241,120]
[340071786,1728460240101,-153.0,0.00053241,120]
[340071787,1728460240110,-153.0,0.00053241,120]
[340071788,1728460240120,-153.0,0.00053241,120]
[340071789,1728460240129,-153.0,0.00053241,120]
[340071790,1728460240139,-153.0,0.00053241,120]
[340071791,1728460240148,-153.0,0.00053241,120]
[340071792,1728460240158,-153.0,0.00053241,120]
[340071793,1728460240167,-153.0,0.00053241,120]
[340071794,1728460240176,-153.0,0.00053241,120]
[340071795,1728460240186,-153.0,0.00053241,120]
[340071796,1728460240196,-153.0,0.00053241,120]
[340071797,1728460240205,-153.0,0.00053241,120]
[340071798,1728460240214,-153.0,0.00053241,120]
[340071799,1728460240224,-153.0,0.00053241,120]
[340071800,1728460240233,-153.0,0.00053241,120]
[340071801,1728460240243,-153.0,0.00053241,120]
[340071802,1728460240253,-153.0,0.00053241,120]
[340071803,1728460240262,-153.0,0.00053241,120]
[340071804,1728460240272,-153.0,0.00053241,120]
[340071805,1728460240281,-153.0,0.00053241,120]
[340071806,1728460240291,-153.0,0.00053241,120]
[340071807,1728460240300,-153.0,0.00053241,120]
[340071808,1728460240310,-153.0,0.00053241,120]
[340071809,1728460240319,-153.0,0.00053241,120]
[340071810,1728460240328,-153.0,0.00053241,120]
[340071811,1728460240338,-153.0,0.00053241,120]
[340071812,1728460240348,-153.0,0.00053241,120]
[340071813,1728460240357,-600.0,0.0005335,2]
[340071814,1728460240366,-500.0,0.00053424,45]
[340071815,1728460240377,-601.56927212,0.000539,2]
[340071816,1728460240387,-400.0,0.00054376,2]
[340071817,1728460240398,-500.0,0.00054794,120]
[340071818,1728460240409,-500.0,0.00054794,120]
[340071819,1728460240420,-500.0,0.00054794,120]
[340071820,1728460240429,-501.90060937,0.00054794,120]
[340071821,1728460240438,-502.52186151,0.00054794,120]
[340071822,1728460240448,-500.0,0.00054794,120]
[340071823,1728460240457,-292.0337079,0.00054794,120]
[340071824,1728460240468,-500.0,0.00054794,120]
[340071825,1728460240477,-300.0,0.00054794,120]
[340071826,1728460240487,-500.0,0.00055397,120]
[340071827,1728460240496,-500.0,0.00055397,120]
[340071828,1728460240506,-300.0,0.00055397,120]
[340071829,1728460240515,-185.508,0.00055571,106]
[340071830,1728460240525,-510.46010632,0.00055942,120]
[340071831,1728460240537,-500.0,0.00055942,120]
[340071832,1728460240546,-151.00000099,0.00055942,120]
[340071833,1728460240556,-3200.0,0.00055943,120]
[340071834,1728460240566,-175.4472697,0.00056,120]
[340071835,1728460240575,-300.0,0.00056,120]
[340071836,1728460240585,-500.0,0.00056164,120]
[340071837,1728460240595,-1351.4,0.000562,7]
[340071838,1728460240607,-500.0,0.00056545,120]
[340071839,1728460240619,-300.0,0.00056602,120]
[340071840,1728460240632,-1320.81791261,0.000568,110]
[340071841,1728460240642,-284.19664317,0.00057148,120]
[340071842,1728460240652,-207.6126583,0.00057205,120]
[340071843,1728460240663,-262.897055,0.0005726,120]
[340071844,1728460240674,-500.0,0.00057534,120]
[340071845,1728460240684,-1256.89,0.00058,90]
[340071846,1728460240694,-500.0,0.00058904,120]
[340071847,1728460240703,-10000.0,0.00059,61]
[340071848,1728460240713,-10000.0,0.000591,62]
[340071849,1728460240723,-4795.53565225,0.000592,63]
[340071850,1728460240735,-5204.46434775,0.000592,63]
[340071851,1728460240745,-351.00949054,0.00059236,2]
[340071852,1728460240757,-48.99050946,0.00059236,2]
[340071853,1728460240767,-10000.0,0.000593,64]
[340071854,1728460240778,-1000.0,0.0005933,120]
[340071855,1728460240788,-10000.0,0.000594,65]
[340071856,1728460240798,-480.0,0.0005941,30]
[340071857,1728460240809,-400.0,0.0005941,30]
[340071858,1728460240819,-333.33,0.0005941,30]
[340071859,1728460240839,-277.78,0.0005941,30]
[340071860,1728460240852,-12995.968319,0.0005942,9]
[340071861,1728460240863,-1483.12000428,0.0005942,9]
[340071862,1728460240874,-500.0,0.00059428,120]
[340071863,1728460240884,-500.0,0.00059428,120]
[340071864,1728460240894,-500.0,0.00059428,120]
[340071865,1728460240904,-500.0,0.00059428,120]
[340071866,1728460240914,-500.0,0.00059428,120]
[340071867,1728460240925,-500.0,0.00059428,120]
[340071868,1728460240934,-500.0,0.00059428,120]
[340071869,1728460240944,-500.0,0.00059428,120]
[340071870,1728460240954,-500.0,0.00059428,120]
[340071871,1728460240964,-500.0,0.00059428,120]
[340071872,1728460240977,-500.0,0.00059428,120]
[340071873,1728460240987,-500.0,0.00059428,120]
[340071874,1728460240997,-500.0,0.00059428,120]
[340071875,1728460241007,-243.21802868,0.00059428,120]
[340071876,1728460241017,-500.0,0.00059428,120]
[340071877,1728460241027,-500.0,0.00059428,120]
[340071878,1728460241037,-500.0,0.00059428,120]
[340071879,1728460241047,-500.0,0.00059428,120]
[340071880,1728460241057,-500.0,0.00059428,120]
[340071881,1728460241068,-500.0,0.00059428,120]
[340071882,1728460241078,-500.0,0.00059428,120]
[340071883,1728460241088,-500.0,0.00059428,120]
[340071884,1728460241098,-500.0,0.00059428,120]
[340071885,1728460241108,-500.0,0.00059428,120]
[340071886,1728460241119,-500.0,0.00059428,120]
[340071887,1728460241128,-30323.9260778,0.0005943,9]
[340071888,1728460241138,-3460.61334332,0.0005943,9]
[340071889,1728460241148,-340.08406647,0.00059439,120]
[340071890,1728460241158,-500.0,0.00059439,120]
[340071891,1728460241167,-157.19715613,0.00059439,120]
[340071892,1728460241177,-534.85360519,0.00059439,120]
[340071893,1728460241189,-125937.3439873,0.0005944,30]
[340071910,1728460269157,1000.0,0.0004,2]
[340071911,1728460419381,3000.0,0.0004,81]
[340071912,1728460432000,206.460518,0.00036,2]
[340071913,1728460449971,270.28,0.000388,2]
[340071914,1728460617220,1000.0,0.0004,3]
[340071915,1728460757092,243.25,0.000388,2]
[340071916,1728460812955,500.0,0.00039181,14]
[340071917,1728460820700,500.0,0.00039181,14]
[340071918,1728460944299,196.137492,0.00036,2]
[340071919,1728461063861,218.92,0.000389,2]
[340071920,1728461371327,197.03,0.000389,2]
[340071942,1728461431898,-310.46071339,0.00041115,7]
[340071944,1728461431910,-196.137492,0.00041315,120]
[340071946,1728461431919,-160.0,0.00044658,2]
[340071948,1728461431929,-196.137492,0.0004663,120]
[340071950,1728461431939,-161.324442,0.00048486,2]
[340071952,1728461431948,-177.0,0.00049,90]
[340071954,1728461431958,-3000.0,0.00051,85]
[340071956,1728461431968,-3000.0,0.0005101,85]
[340071958,1728461431980,-3000.0,0.0005102,85]
[340071961,1728461431989,-196.137492,0.00051945,120]
[340071962,1728461431998,-500.0,0.00052,120]
[340071964,1728461432008,-500.0,0.00054794,120]
[340071966,1728461432018,-160.0,0.00054916,2]
[340071968,1728461432028,-299.2,0.00055,120]
[340071970,1728461432038,-500.0,0.00055397,120]
[340071972,1728461432047,-3284.888,0.00055963,120]
[340071974,1728461432057,-591.1,0.000572,7]
[340071976,1728461432067,-196.137492,0.0005726,120]
[340071978,1728461432076,-575.93279235,0.00059329,120]
[340071980,1728461432086,-421.97680825,0.00059329,120]
[340071982,1728461432095,-2781.37472796,0.0005933,9]
[340071983,1728461432105,-1960.92355282,0.0005933,9]
[340071984,1728461432114,-192.9,0.0005933,30]
[340071985,1728461432124,-199.33,0.0005933,30]
[340071986,1728461432133,-166.11,0.0005933,30]
[340071987,1728461432143,-1000.0,0.0005933,120]
[340071988,1728461432152,-500.0,0.00059338,120]
[340071989,1728461432161,-258.45530429,0.00059338,120]
[340071990,1728461432171,-502.31078652,0.00059338,120]
[340071991,1728461432181,-503.70262211,0.00059338,120]
[340071992,1728461432190,-500.11012886,0.00059338,120]
[340071993,1728461432201,-500.0,0.00059338,120]
[340071994,1728461432211,-528.33666356,0.00059338,120]
[340071995,1728461432220,-151.0,0.00059338,120]
[340071996,1728461432232,-500.0,0.00059339,120]
[340071997,1728461432241,-500.0,0.00059339,120]
[340071998,1728461432250,-500.0,0.00059339,120]
[340071999,1728461432395,-500.0,0.00059339,120]
[340072000,1728461432406,-224.32180286,0.00059339,120]
[340072001,1728461432416,-185.50815474,0.00059339,118]
[340072002,1728461432425,-500.0,0.00059339,120]
[340072003,1728461432435,-6349.1389983,0.0005934,64]
[340072008,1728461438280,-400.0,0.00044658,2]
[340072009,1728461438290,-201.12778865,0.0005934,64]
[340072303,1728461443008,-400.0,0.00049517,2]
[340072305,1728461443018,-400.0,0.00054376,2]
[340072307,1728461443028,-400.0,0.00059236,2]
[340072309,1728461443037,-741.34458132,0.0005933,30]
[340072323,1728461443166,-89.21541868,0.0005933,30]
[340072325,1728461443175,-308.62773211,0.0005934,64]
[340072624,1728461564860,14235.054935,0.0004,2]
[340072625,1728461668270,1770.1955839,0.00039,2]
[340072626,1728461677434,150.0,0.000389,2]
[340072627,1728461749345,163.448062,0.00036,2]
[340072628,1728461984473,150.0,0.000389,2]
[340072629,1728462290519,150.0,0.000389,2]
[340072632,1728462372017,163.448062,0.00036,2]
[340072633,1728462514681,18021.517099,0.000368,14]
[340072634,1728462524003,2179.9536789,0.00033,30]
[340072635,1728462524029,7882.36656753,0.00033,30]
[340072664,1728462632117,-150.0,0.000389,2]
[340072675,1728462632245,-536.74646351,0.00039851,15]
[340072676,1728462632255,-249.69872643,0.00039851,15]
[340072677,1728462632266,-272.03526387,0.00039851,15]
[340072678,1728462632276,-166.666666,0.0004127,2]
[340072679,1728462632286,-899.537285,0.00041833,2]
[340072680,1728462632296,-163.448062,0.0004194,120]
[340072681,1728462632306,-269.003,0.00041974,2]
[340072682,1728462632316,-300.0,0.00042174,5]
[340072683,1728462632326,-3000.0,0.00042175,2]
[340072684,1728462632335,-158.486547,0.00042426,2]
[340072685,1728462632345,-158.486547,0.00042456,2]
[340072686,1728462632355,-158.486547,0.00042486,2]
[340072687,1728462632364,-158.486547,0.00042517,2]
[340072688,1728462632374,-899.537285,0.00042518,2]
[340072689,1728462632383,-158.486547,0.00042547,2]
[340072690,1728462632393,-158.486547,0.00042577,2]
[340072691,1728462632408,-158.486547,0.00042608,2]
[340072692,1728462632425,-158.486547,0.00042638,2]
[340072693,1728462632440,-899.537285,0.00043203,2]
[340072694,1728462632452,-400.0,0.00044658,2]
[340072695,1728462632463,-396.5333948,0.00044708,2]
[340072696,1728462632473,-163.448062,0.00047881,120]
[340072697,1728462632483,-400.0,0.00049517,2]
[340072698,1728462632493,-3089.36132033,0.0005,120]
[340072699,1728462632506,-1669.69707867,0.0005,120]
[340072700,1728462632518,-462.46397076,0.0005,120]
[340072701,1728462638377,-341.77773032,0.0005,120]
[340072702,1728462638389,-388.94201206,0.0005,120]
[340072703,1728462638403,-1663.70591828,0.0005,120]
[340072704,1728462638488,-793.056461,0.0005,120]
[340072705,1728462638497,-150.0,0.00051,85]
[340072706,1728462638507,-500.0,0.000523,10]
[340072707,1728462638517,-194.9009,0.000523,10]
[340072708,1728462638527,-500.0,0.000523,10]
[340072709,1728462638537,-500.0,0.000523,7]
[340072710,1728462638550,-153.0,0.00053517,120]
[340072711,1728462638560,-153.0,0.00053517,120]
[340072712,1728462638569,-153.0,0.00053517,120]
[340072713,1728462638579,-153.0,0.00053517,120]
[340072714,1728462638588,-153.0,0.00053517,120]
[340072715,1728462638598,-153.0,0.00053517,120]
[340072716,1728462638607,-153.0,0.00053517,120]
[340072717,1728462638617,-153.0,0.00053517,120]
[340072718,1728462638627,-153.0,0.00053517,120]
[340072719,1728462638637,-153.0,0.00053517,120]
[340072720,1728462638646,-153.0,0.00053517,120]
[340072721,1728462638656,-153.0,0.00053517,120]
[340072722,1728462638666,-153.0,0.00053517,120]
[340072723,1728462638675,-153.0,0.00053517,120]
[340072724,1728462638686,-153.0,0.00053517,120]
[340072725,1728462638695,-153.0,0.00053517,120]
[340072726,1728462638705,-153.0,0.00053517,120]
[340072727,1728462638715,-153.0,0.00053517,120]
[340072728,1728462638724,-153.0,0.00053517,120]
[340072729,1728462638734,-153.0,0.00053517,120]
[340072730,1728462638744,-153.0,0.00053517,120]
[340072731,1728462638754,-153.0,0.00053517,120]
[340072732,1728462638763,-153.0,0.00053517,120]
[340072733,1728462638773,-153.0,0.00053517,120]
[340072734,1728462638782,-153.0,0.00053517,120]
[340072735,1728462638792,-153.0,0.00053517,120]
[340072736,1728462638802,-153.0,0.00053517,120]
[340072737,1728462638812,-153.0,0.00053517,120]
[340072738,1728462638822,-153.0,0.00053517,120]
[340072739,1728462638831,-153.0,0.00053517,120]
[340072740,1728462638841,-153.0,0.00053517,120]
[340072741,1728462638851,-153.0,0.00053517,120]
[340072742,1728462638861,-153.0,0.00053517,120]
[340072743,1728462638871,-153.0,0.00053517,120]
[340072744,1728462638882,-153.0,0.00053517,120]
[340072745,1728462638891,-153.0,0.00053517,120]
[340072746,1728462638902,-153.0,0.00053517,120]
[340072747,1728462638912,-153.0,0.00053517,120]
[340072748,1728462638922,-153.0,0.00053517,120]
[340072749,1728462638934,-153.0,0.00053517,120]
[340072750,1728462638944,-153.0,0.00053517,120]
[340072751,1728462638954,-153.0,0.00053517,120]
[340072752,1728462638965,-153.0,0.00053517,120]
[340072753,1728462638976,-153.0,0.00053517,120]
[340072754,1728462638987,-153.0,0.00053517,120]
[340072755,1728462638997,-153.0,0.00053517,120]
[340072756,1728462639011,-153.0,0.00053517,120]
[340072757,1728462639022,-153.0,0.00053517,120]
[340072758,1728462639032,-153.0,0.00053517,120]
[340072759,1728462639042,-153.0,0.00053517,120]
[340072760,1728462639052,-153.0,0.00053517,120]
[340072761,1728462639061,-153.0,0.00053517,120]
[340072762,1728462639071,-153.0,0.00053517,120]